bitfinex/quotes_ETHUSD_20240921
["timestamp","ask_amount","ask_price","bid_price","bid_amount"]
[1726950398916,0.81330432,2572.0,2571.9,2.78694713]
[1726950399090,0.81330432,2572.0,2571.9,3.28694713]
[1726950399294,0.81330432,2572.0,2571.9,2.8939]
[1726950399493,0.81330432,2572.0,2571.9,3.28686709]
[1726950401080,0.81330432,2572.0,2571.9,0.89296709]
[1726950403300,0.81330432,2572.0,2571.9,1.39296709]
[1726950404857,0.8810103,2572.1,2571.9,1.39296709]
[1726950405144,0.8810103,2572.1,2572.0,0.39296709]
[1726950405353,0.81330432,2572.2,2572.0,0.48817953]
[1726950405520,1.22038407,2572.3,2572.1,0.39296709]
[1726950405715,1.22038407,2572.3,2572.0,2.4347]
[1726950405716,0.81310709,2572.2,2572.0,2.4347]
[1726950405948,0.81310709,2572.3,2572.0,2.77817]
[1726950406120,0.81310709,2572.3,2572.2,2.4347]
[1726950406323,0.81310709,2572.4,2572.2,2.82755521]
[1726950406635,0.81310709,2572.4,2572.3,0.39285521]
[1726950408123,0.81310709,2572.4,2572.2,2.4347]
[1726950409323,0.81310709,2572.5,2572.2,2.4347]
[1726950409660,0.81310709,2572.4,2572.2,2.4347]
[1726950410733,0.81310709,2572.5,2572.2,2.4347]
[1726950413652,1.40515821,2572.5,2572.2,2.4347]
[1726950415770,1.40515821,2572.5,2572.2,2.9347]
[1726950416367,1.40515821,2572.5,2572.3,0.09477995]
[1726950416729,1.40515821,2572.5,2572.2,2.9347]
[1726950416967,1.40515821,2572.5,2572.4,0.09470634]
[1726950417141,1.40515821,2572.5,2572.3,0.09477995]
[1726950417340,1.40515821,2572.5,2572.2,2.9347]
[1726950417548,1.40515821,2572.5,2572.4,0.09466458]
[1726950417871,1.40515821,2572.5,2572.2,2.9347]
[1726950418167,1.40515821,2572.5,2572.4,0.09466458]
[1726950418469,1.40515821,2572.5,2572.2,2.9347]
[1726950418767,1.40515821,2572.5,2572.4,0.09466458]
[1726950418934,1.40515821,2572.5,2572.3,0.09473818]
[1726950419269,0.26255423,2572.4,2572.2,2.9347]
[1726950419431,0.81310709,2572.4,2572.2,2.9347]
[1726950419843,1.40515821,2572.5,2572.2,2.9347]
[1726950420185,0.81310709,2572.4,2572.2,2.9347]
[1726950422001,0.55,2572.3,2572.2,0.5]
[1726950422314,1.36310709,2572.3,2572.2,0.5]
[1726950422514,2.47033461,2572.3,2572.2,0.5]
[1726950422676,1.65722752,2572.3,2572.2,0.5]
[1726950423199,2.87761159,2572.3,2572.2,0.5]
[1726950436705,3.28433088,2572.3,2572.2,0.5]
[1726950437221,1.65722752,2572.3,2572.2,0.5]
[1726950439202,3.28433088,2572.3,2572.2,0.5]
[1726950439529,1.65722752,2572.3,2572.2,0.5]
[1726950439730,3.28433088,2572.3,2572.2,0.5]
[1726950443237,7.17190088,2572.3,2572.2,0.5]
[1726950449997,3.28433088,2572.3,2572.2,0.5]
[1726950451808,7.17232231,2572.3,2572.2,0.5]
[1726950452231,5.54479752,2572.3,2572.2,0.5]
[1726950452437,7.17229315,2572.3,2572.2,0.5]
[1726950452735,5.54479752,2572.3,2572.2,0.5]
[1726950454737,7.17235142,2572.3,2572.2,0.5]
[1726950455648,5.54479752,2572.3,2572.2,0.5]
[1726950455819,7.1723968,2572.3,2572.2,0.5]
[1726950456337,5.54479752,2572.3,2572.2,0.5]
[1726950458240,7.57956923,2572.3,2572.2,0.5]
[1726950458839,5.54479752,2572.3,2572.2,0.5]
[1726950459237,7.57956923,2572.3,2572.2,0.5]
[1726950463339,1.62845433,2572.3,2572.2,2.8978]
[1726950463544,1.62845433,2572.3,2572.2,2.99064843]
[1726950465937,1.62845433,2572.3,2572.2,2.49064843]
[1726950466294,1.62845433,2572.3,2572.2,2.8978]
[1726950467347,2.03477171,2572.4,2572.2,2.8978]
[1726950467532,3.48555089,2572.4,2572.2,2.8978]
[1726950468608,3.48728147,2572.4,2572.2,2.8978]
[1726950470050,1.62900992,2572.3,2572.2,2.8978]
[1726950470259,3.48728147,2572.4,2572.2,3.3978]
[1726950471862,1.62903365,2572.3,2572.2,3.3978]
[1726950472315,1.62905472,2572.3,2572.2,3.3978]
[1726950472518,1.62899175,2572.3,2572.2,3.3978]
[1726950472937,1.62896935,2572.3,2572.2,3.3978]
[1726950474223,1.62896935,2572.3,2572.2,3.8978]
[1726950475926,2.44345163,2572.3,2572.2,3.8978]
[1726950476622,2.44322024,2572.3,2572.2,3.8978]
[1726950476817,0.81448228,2572.3,2572.2,3.8978]
[1726950477566,2.44329924,2572.3,2572.2,3.8978]
[1726950477767,0.81448228,2572.3,2572.2,3.8978]
[1726950478372,0.81448228,2572.3,2572.2,4.3978]
[1726950479431,2.44332328,2572.3,2572.2,4.3978]
[1726950479845,0.81448228,2572.3,2572.2,4.3978]
[1726950480040,2.44330876,2572.3,2572.2,4.3978]
[1726950480803,0.81448228,2572.3,2572.2,4.3978]
[1726950481371,2.44340371,2572.3,2572.2,4.3978]
[1726950481583,0.81448228,2572.3,2572.2,4.3978]
[1726950482430,0.81448228,2572.3,2572.2,4.8978]
[1726950486363,1.85053218,2572.4,2572.2,4.8978]
[1726950486975,0.85053218,2572.4,2572.2,4.8978]
[1726950487481,1.62908322,2572.3,2572.2,4.8978]
[1726950487841,4.47935112,2572.5,2572.2,4.8978]
[1726950488174,1.62906931,2572.3,2572.2,4.8978]
[1726950488381,0.55,2572.4,2572.2,4.8978]
[1726950488682,1.6290379,2572.3,2572.2,4.8978]
[1726950488891,0.55,2572.4,2572.2,4.8978]
[1726950489097,1.62903956,2572.3,2572.2,4.8978]
[1726950489392,1.62905757,2572.3,2572.2,4.8978]
[1726950490592,1.22176401,2572.3,2572.2,5.38758]
[1726950490758,1.22176401,2572.3,2572.2,4.99057884]
[1726950493469,1.22176401,2572.3,2572.2,4.8978]
[1726950493891,1.22176401,2572.3,2572.2,4.99053987]
[1726950494401,1.22176401,2572.3,2572.2,4.8978]
[1726950495472,1.22176401,2572.3,2572.2,4.99053987]
[1726950495656,1.22176401,2572.3,2572.2,4.8978]
[1726950495854,1.22176401,2572.3,2572.2,4.99053987]
[1726950496496,1.22176401,2572.3,2572.2,4.8978]
[1726950496702,1.22176401,2572.3,2572.2,4.99053987]
[1726950499074,1.22176401,2572.4,2572.2,4.99053987]
[1726950499487,1.22176401,2572.4,2572.2,4.8978]
[1726950499859,0.81424811,2572.3,2572.2,4.8978]
[1726950500420,1.22176401,2572.4,2572.2,4.8978]
[1726950500884,1.22176401,2572.3,2572.2,4.8978]
[1726950501329,1.22176401,2572.4,2572.2,4.99052037]
[1726950501582,1.22176401,2572.4,2572.2,4.8978]
[1726950502127,1.22176401,2572.3,2572.2,4.8978]
[1726950502482,1.22176401,2572.3,2572.2,4.99052037]
[1726950502995,1.22176401,2572.4,2572.2,4.99052037]
[1726950503389,1.22176401,2572.4,2572.2,4.8978]
[1726950506729,1.22176401,2572.3,2572.2,4.8978]
[1726950507230,1.22176401,2572.3,2572.2,4.99052037]
[1726950508633,1.22176401,2572.3,2572.2,4.8978]
[1726950510938,1.22176401,2572.4,2572.2,4.8978]
[1726950511306,1.22176401,2572.3,2572.2,4.8978]
[1726950519052,1.22176401,2572.4,2572.2,4.8978]
[1726950519406,1.22176401,2572.3,2572.2,4.8978]
[1726950529153,1.22176401,2572.3,2572.2,2.5]
[1726950529343,8.50542757,2572.3,2572.2,2.5]
[1726950529511,8.54107296,2572.3,2572.2,2.5]
[1726950529712,9.98751487,2572.3,2572.2,2.5]
[1726950530640,12.02267529,2572.3,2572.2,2.5]
[1726950531148,10.35797233,2572.3,2572.2,2.5]
[1726950531449,4.61687382,2572.3,2572.2,2.5]
[1726950532666,4.61687382,2572.3,2571.8,2.3004]
[1726950532867,0.81399121,2572.0,2571.8,2.3004]
[1726950549231,0.81399121,2572.0,2571.9,0.5]
[1726950555092,0.81399121,2572.1,2571.9,0.5]
[1726950555392,0.81399121,2572.0,2571.9,0.5]
[1726950571283,1.22098682,2572.1,2571.9,0.5]
[1726950571711,0.81494325,2572.0,2571.9,0.5]
[1726950572300,1.22098682,2572.1,2571.9,0.5]
[1726950572687,0.81502331,2572.0,2571.9,0.5]
[1726950572891,1.22098682,2572.1,2571.9,0.5]
[1726950573311,1.22098682,2572.0,2571.9,0.5]
[1726950582941,1.62807382,2572.1,2571.9,0.5]
[1726950583235,1.22439712,2572.0,2571.9,0.5]
[1726950583439,1.62807382,2572.1,2571.9,0.5]
[1726950583633,1.22456249,2572.0,2571.9,0.5]
[1726950583937,1.62807382,2572.1,2571.9,0.5]
[1726950584143,1.22454345,2572.0,2571.9,0.5]
[1726950584304,1.62807382,2572.1,2571.9,0.5]
[1726950584499,1.2245274,2572.0,2571.9,0.5]
[1726950584704,1.62807382,2572.1,2571.9,0.5]
[1726950587009,1.22454385,2572.0,2571.9,0.5]
[1726950587335,1.62807382,2572.0,2571.9,0.5]
[1726950588451,4.12327382,2572.0,2571.9,0.5]
[1726950589949,8.97382928,2572.0,2571.9,0.5]
[1726950590267,5.93322,2572.0,2571.9,0.5]
[1726950590444,7.43212931,2572.0,2571.9,0.5]
[1726950591730,9.88086044,2572.0,2571.9,0.5]
[1726950591940,7.43212931,2572.0,2571.9,0.5]
[1726950595449,9.4689201,2572.0,2571.9,0.5]
[1726950598975,9.4681802,2572.0,2571.9,0.5]
[1726950599479,3.88837,2571.8,2571.2,2.2651]
[1726950599672,0.81435117,2571.6,2571.3,0.4778321]
[1726950599975,0.81435117,2571.6,2571.3,0.3929803]
[1726950603639,0.81435117,2571.7,2571.3,0.3929803]
[1726950604012,0.81435117,2571.7,2571.4,2.2651]
[1726950604233,0.81435117,2571.8,2571.5,1.66470296]
[1726950604444,0.81435117,2571.9,2571.7,1.66470296]
[1726950604740,0.81435117,2572.1,2571.7,1.66470296]
[1726950604928,0.81435117,2572.1,2571.8,2.2883]
[1726950605805,0.81435117,2572.2,2571.8,2.2883]
[1726950606006,0.81435117,2572.1,2571.8,2.2883]
[1726950606207,0.81435117,2572.1,2571.8,2.6836003]
[1726950607803,0.81435117,2572.1,2572.0,0.5]
[1726950609640,0.81435117,2572.2,2572.0,0.5]
[1726950609851,0.81435117,2572.1,2572.0,0.5]
[1726950633455,0.81435117,2572.2,2572.0,0.5]
[1726950633652,0.81435117,2572.1,2572.0,0.5]
[1726950635891,7.57949675,2572.3,2572.0,0.5]
[1726950635892,0.81435117,2572.2,2572.0,0.5]
[1726950636106,0.81435117,2572.1,2572.0,0.5]
[1726950636693,5.10909675,2572.3,2572.1,2.297]
[1726950636694,0.81435117,2572.3,2572.1,2.297]
[1726950636860,1.62870234,2572.5,2572.1,2.297]
[1726950636861,0.81435117,2572.5,2572.1,2.297]
[1726950637396,0.81435117,2572.4,2572.1,2.297]
[1726950638376,0.81435117,2572.4,2572.1,2.7710533]
[1726950640505,0.81435117,2572.5,2572.1,2.7710533]
[1726950640868,1.36435117,2572.3,2572.0,0.5]
[1726950641068,0.81435117,2572.2,2572.0,0.5]
[1726950641271,0.81435117,2572.2,2572.1,0.0841234]
[1726950641505,1.36435117,2572.3,2572.1,0.0841234]
[1726950641689,0.81435117,2572.2,2572.1,0.0841234]
[1726950641899,1.36435117,2572.3,2572.0,0.5]
[1726950642203,0.81435117,2572.2,2572.0,0.5]
[1726950642367,0.81435117,2572.2,2572.1,0.08419857]
[1726950645375,1.77152675,2572.3,2572.1,0.08419857]
[1726950645682,1.77152675,2572.3,2572.0,0.5]
[1726950645890,0.81462549,2572.1,2572.0,0.5]
[1726950646403,0.81462549,2572.1,2572.0,0.5842722]
[1726950646709,0.81462549,2572.2,2572.0,0.5842722]
[1726950648323,0.81462549,2572.1,2572.0,0.5842722]
[1726950665436,0.81462549,2572.2,2572.0,0.5842722]
[1726950665644,0.81462549,2572.1,2572.0,0.5]
[1726950666096,0.81462549,2572.2,2571.9,2.297]
[1726950666300,0.81462549,2572.1,2571.9,2.297]
[1726950667900,0.81462549,2572.2,2572.0,0.07775751]
[1726950668096,0.81462549,2572.3,2572.1,2.32]
[1726950668338,0.81462549,2572.3,2572.1,2.3977494]
[1726950668717,0.81462549,2572.3,2572.1,2.32]
[1726950670341,0.81462549,2572.4,2572.1,2.32]
[1726950670741,0.81462549,2572.3,2572.1,2.32]
[1726950678516,0.81462549,2572.2,2572.1,2.32]
[1726950679621,0.81462549,2572.3,2572.1,2.32]
[1726950680148,0.81462549,2572.3,2572.0,1.5]
[1726950680925,0.81462549,2572.2,2572.0,1.5]
[1726950682730,0.81462549,2572.1,2572.0,1.5]
[1726950683057,1.22152675,2572.1,2572.0,2.0]
[1726950683226,1.22152675,2572.1,2572.0,2.0833187]
[1726950683851,3.57412675,2572.2,2572.0,2.0833187]
[1726950684200,0.81564593,2572.1,2572.0,2.0833187]
[1726950684318,0.81564593,2572.1,2572.0,2.0]
[1726950684950,0.81564593,2572.1,2572.0,2.0833187]
[1726950685119,0.81564593,2572.1,2572.0,2.0]
[1726950690986,3.57412675,2572.2,2572.0,2.0]
[1726950691273,2.13056966,2572.1,2572.0,2.0]
[1726950691949,2.68056966,2572.1,2572.0,2.0]
[1726950692471,2.68269118,2572.1,2572.0,2.0]
[1726950692836,1.45904291,2572.1,2572.0,2.0]
[1726950693737,2.68263983,2572.1,2572.0,2.0]
[1726950698281,1.77359692,2572.1,2572.0,2.0]
[1726950698866,0.55,2572.1,2572.0,2.0]
[1726950700087,1.77359692,2572.1,2572.0,2.0]
[1726950700672,0.55,2572.1,2572.0,2.0]
[1726950703991,1.77359692,2572.1,2572.0,2.0]
[1726950710117,0.55,2572.1,2572.0,2.0]
[1726950711618,1.77359692,2572.1,2572.0,2.0]
[1726950713111,5.66146692,2572.1,2572.0,2.0]
[1726950713311,8.41932093,2572.1,2572.0,2.0]
[1726950713532,10.04802327,2572.1,2572.0,2.0]
[1726950713821,8.41932093,2572.1,2572.0,2.0]
[1726950713989,10.04995799,2572.1,2572.0,2.0]
[1726950714194,8.41932093,2572.1,2572.0,2.0]
[1726950714396,10.45772341,2572.1,2572.0,2.0]
[1726950714595,12.12242637,2572.1,2572.0,2.0]
[1726950715996,10.45772341,2572.1,2572.0,2.0]
[1726950717314,8.41932093,2572.1,2572.0,2.0]
[1726950717787,10.45772341,2572.1,2572.0,2.0]
[1726950718133,8.41932093,2572.1,2572.0,2.0]
[1726950719135,10.45702208,2572.1,2572.0,2.0]
[1726950719622,8.41932093,2572.1,2572.0,2.0]
[1726950720022,10.45702208,2572.1,2572.0,2.0]
[1726950720617,8.41932093,2572.1,2572.0,2.0]
[1726950720838,3.0249,2572.1,2572.0,2.0]
[1726950721133,1.77267318,2572.1,2572.0,2.0]
[1726950721788,0.81519264,2572.1,2572.0,4.4419]
[1726950721930,1.22267318,2572.2,2572.0,4.4419]
[1726950721931,0.81519264,2572.2,2572.0,4.4419]
[1726950722131,0.81519264,2572.3,2572.0,4.5244603]
[1726950722429,0.81519264,2572.3,2572.0,5.06081633]
[1726950722799,0.81519264,2572.3,2572.1,0.08248668]
[1726950723191,0.81519264,2572.3,2572.0,5.06081633]
[1726950723701,0.81519264,2572.3,2572.0,4.4419]
[1726950723912,0.81519264,2572.3,2572.1,0.08248668]
[1726950728036,0.81519264,2572.2,2572.1,0.08248668]
[1726950728855,0.81519264,2572.3,2572.1,0.08248668]
[1726950729346,0.81519264,2572.4,2572.2,2.3443]
[1726950729835,0.81519264,2572.4,2572.3,0.08228374]
[1726950730240,0.81519264,2572.4,2572.2,2.3443]
[1726950730907,0.81519264,2572.3,2572.2,2.3443]
[1726950731107,0.81519264,2572.4,2572.2,2.42655992]
[1726950731536,0.81519264,2572.4,2572.2,2.3443]
[1726950744430,0.81519264,2572.5,2572.2,2.3443]
[1726950744628,1.96617968,2572.5,2572.2,2.3443]
[1726950745266,0.96617968,2572.5,2572.2,2.3443]
[1726950745655,0.81519264,2572.5,2572.2,2.3443]
[1726950745862,0.81519264,2572.5,2572.3,0.5]
[1726950748975,5.17746964,2572.6,2572.3,0.5]
[1726950748976,8.87988228,2572.6,2572.3,0.5]
[1726950749272,6.23458,2572.5,2572.3,0.5]
[1726950749771,2.3473,2572.5,2572.3,0.5]
[1726950749984,6.10212296,2572.4,2572.3,1.0]
[1726950750136,6.10212296,2572.4,2572.3,0.77322573]
[1726950750338,7.32479614,2572.4,2572.3,0.77322573]
[1726950751079,10.07965111,2572.4,2572.3,0.77322573]
[1726950756891,10.07965111,2572.4,2572.3,0.77205827]
[1726950757087,11.56604513,2572.4,2572.3,0.77205827]
[1726950757291,3.88787,2572.1,2572.0,1.5]
[1726950757503,8.44987296,2572.1,2572.0,1.5]
[1726950758799,0.55,2572.1,2572.0,1.5]
[1726950759262,2.65397991,2572.1,2572.0,1.58056907]
[1726950759593,2.65397991,2572.1,2572.0,1.5]
[1726950761599,1.43214256,2572.1,2572.0,1.5]
[1726950764303,3.06235562,2572.1,2572.0,1.5]
[1726950769808,1.63021306,2572.1,2572.0,1.5]
[1726950770189,1.63021306,2572.1,2572.0,1.58067767]
[1726950770388,1.63021306,2572.1,2572.0,1.5]
[1726950772191,1.63021306,2572.1,2572.0,3.8604]
[1726950772530,1.63021306,2572.1,2572.0,3.94107767]
[1726950774310,0.81523114,2572.2,2572.0,3.94107767]
[1726950774734,0.81523114,2572.2,2572.0,3.8604]
[1726950777403,0.81523114,2572.2,2572.1,0.08060405]
[1726950779708,0.81523114,2572.2,2572.0,3.8604]
[1726950781840,0.81523114,2572.1,2572.0,3.8604]
[1726950782056,0.81523114,2572.1,2572.0,1.5]
[1726950789177,1.22284671,2572.2,2572.0,1.58060804]
[1726950789353,1.50815269,2572.1,2572.0,1.5]
[1726950794653,0.28530598,2572.1,2572.0,1.5]
[1726950795285,1.63021306,2572.2,2572.0,1.5]
[1726950795511,1.63021306,2572.1,2572.0,1.5]
[1726950795787,1.63021306,2572.2,2572.0,1.5]
[1726950796189,1.63021306,2572.1,2572.0,1.5]
[1726950797089,1.63021306,2572.2,2572.0,1.5]
[1726950797396,1.63021306,2572.1,2572.0,1.5]
[1726950797562,1.22398537,2572.1,2572.0,1.5]
[1726950797971,1.63021306,2572.2,2572.0,1.5]
[1726950798170,1.22354296,2572.1,2572.0,1.5]
[1726950798492,1.63021306,2572.2,2572.0,1.5]
[1726950798710,1.22356459,2572.1,2572.0,1.5]
[1726950800059,1.22356459,2572.1,2571.8,2.3604]
[1726950800397,0.81574914,2571.9,2571.8,2.3604]
[1726950801192,0.81574914,2572.0,2571.8,2.3604]
[1726950802359,0.81574914,2571.9,2571.8,2.3604]
[1726950802774,0.81574914,2572.0,2571.8,2.3604]
[1726950803380,0.81574914,2572.1,2571.8,2.3604]
[1726950804428,0.81574914,2572.1,2572.0,0.5]
[1726950804959,0.81574914,2572.3,2572.0,2.45074296]
[1726950805209,0.81574914,2572.3,2572.2,2.3783]
[1726950805358,0.81574914,2572.4,2572.2,2.45871905]
[1726950805558,0.81574914,2572.4,2572.2,2.3783]
[1726950806160,0.81574914,2572.6,2572.3,2.3783]
[1726950806377,0.81574914,2572.6,2572.4,0.08027182]
[1726950806600,0.81574914,2572.7,2572.3,2.3783]
[1726950806800,0.81574914,2572.6,2572.3,2.3783]
[1726950807310,0.81574914,2572.7,2572.3,2.3783]
[1726950809309,0.81574914,2572.8,2572.3,2.3783]
[1726950815081,0.81574914,2572.8,2572.3,1.8783]
[1726950815609,0.81574914,2572.8,2572.4,0.0801577]
[1726950815813,0.81574914,2572.9,2572.4,0.0801577]
[1726950816015,1.97960612,2572.9,2572.4,0.0801577]
[1726950816229,1.97960612,2572.9,2572.3,1.8783]
[1726950818812,1.97960612,2572.9,2572.4,0.0801577]
[1726950819030,1.97960612,2572.9,2572.3,1.8783]
[1726950820608,1.97960612,2572.9,2572.1,2.2728]
[1726950820813,1.97960612,2572.9,2572.2,2.35297966]
[1726950826210,0.81574914,2572.9,2572.3,0.07774083]
[1726950826427,0.81574914,2572.9,2572.4,2.4245]
[1726950826657,0.81574914,2572.9,2572.5,0.07995883]
[1726950827711,0.81574914,2572.9,2572.4,2.4245]
[1726950827712,3.23354914,2573.0,2572.4,2.4245]
[1726950827904,3.23354914,2573.0,2572.6,0.07988524]
[1726950828136,4.62632336,2573.0,2572.4,2.4245]
[1726950828337,0.81574914,2572.9,2572.4,2.4245]
[1726950828704,3.23354914,2573.0,2572.4,2.4245]
[1726950829134,2.4178,2573.0,2572.4,2.4245]
[1726950829303,3.23354914,2573.0,2572.4,2.4245]
[1726950829504,0.33012446,2572.9,2572.4,2.4245]
[1726950836335,1.1458736,2572.9,2572.4,2.4245]
[1726950839179,5.25264914,2572.8,2572.4,2.4245]
[1726950840967,0.81574914,2572.7,2572.4,2.4245]
[1726950841164,1.36574914,2572.8,2572.4,2.4245]
[1726950841356,0.68060982,2572.7,2572.4,2.4245]
[1726950841954,1.49635896,2572.7,2572.4,2.4245]
[1726950843088,1.49635896,2572.7,2572.0,1.5]
[1726950843089,3.90945896,2572.7,2572.1,2.4245]
[1726950843479,3.90945896,2572.7,2572.2,0.08017966]
[1726950844378,0.81574914,2572.6,2572.2,0.08017966]
[1726950846578,4.31727441,2572.7,2572.2,0.08017966]
[1726950846579,0.81574914,2572.5,2572.2,0.08017966]
[1726950846781,0.81574914,2572.6,2572.2,0.08017966]
[1726950847480,0.81574914,2572.6,2572.3,2.2878]
[1726950848378,0.81574914,2572.5,2572.3,2.2878]
[1726950851621,0.81574914,2572.4,2572.3,2.2878]
[1726950851995,0.81574914,2572.5,2572.3,2.2878]
[1726950856923,0.81574914,2572.4,2572.3,2.2878]
[1726950857996,0.81574914,2572.5,2572.3,2.2878]
[1726950858332,0.81574914,2572.4,2572.3,2.2878]
[1726950859206,0.81574914,2572.5,2572.3,2.2878]
[1726950859739,0.81574914,2572.4,2572.3,2.2878]
[1726950860502,0.81574914,2572.5,2572.3,2.2878]
[1726950861544,0.81574914,2572.4,2572.3,2.2878]
[1726950861701,0.81574914,2572.5,2572.3,2.2878]
[1726950863660,0.81574914,2572.4,2572.3,2.2878]
[1726950866160,0.81574914,2572.5,2572.3,2.2878]
[1726950866322,0.81574914,2572.4,2572.3,2.2878]
[1726950866519,0.81574914,2572.5,2572.3,2.2878]
[1726950866724,0.81574914,2572.4,2572.3,2.2878]
[1726950867036,0.81574914,2572.5,2572.3,2.2878]
[1726950867570,0.81574914,2572.4,2572.3,2.2878]
[1726950868356,0.81574914,2572.5,2572.3,2.2878]
[1726950870266,0.81574914,2572.4,2572.3,2.2878]
[1726950870573,0.81574914,2572.5,2572.3,2.2878]
[1726950870866,0.81574914,2572.4,2572.1,2.2989]
[1726950871032,0.81574914,2572.4,2572.2,0.07843535]
[1726950875788,0.81574914,2572.3,2572.2,0.07843535]
[1726950878141,0.81574914,2572.4,2572.2,0.07843535]
[1726950878543,0.81574914,2572.3,2572.2,0.07843535]
[1726950878751,0.81574914,2572.4,2572.2,0.07843535]
[1726950879434,0.81574914,2572.3,2572.2,0.07843535]
[1726950880010,0.81574914,2572.4,2572.2,0.07843535]
[1726950880631,0.81574914,2572.3,2572.2,0.07843535]
[1726950881643,0.81574914,2572.4,2572.2,0.07843535]
[1726950881956,0.81574914,2572.3,2572.2,0.07843535]
[1726950882613,0.81574914,2572.4,2572.2,0.07843535]
[1726950883446,0.81574914,2572.3,2572.2,0.07843535]
[1726950896752,4.51104596,2572.3,2572.2,0.07843535]
[1726950896929,4.51104596,2572.3,2572.0,1.5]
[1726950897124,0.81612565,2572.1,2572.0,1.5]
[1726950898470,0.81612565,2572.1,2572.0,1.57859653]
[1726950898779,0.81612565,2572.1,2572.0,1.5]
[1726950900068,0.81612565,2572.2,2572.0,1.5]
[1726950900270,0.81612565,2572.1,2572.0,1.5]
[1726950901740,0.81612565,2572.1,2572.0,1.57859653]
[1726950901968,0.81612565,2572.2,2572.0,1.57859653]
[1726950903662,0.81612565,2572.2,2572.1,0.07852291]
[1726950909346,1.46797598,2572.2,2572.1,0.07852291]
[1726950912354,0.81612565,2572.2,2572.1,0.07852291]
[1726950913177,0.81612565,2572.2,2572.1,0.57852291]
[1726950914974,0.81612565,2572.3,2572.1,0.57852291]
[1726950915491,0.81612565,2572.2,2572.1,0.57852291]
[1726950915689,0.81612565,2572.3,2572.1,0.57852291]
[1726950915982,0.81612565,2572.2,2572.1,0.57852291]
[1726950916990,0.81612565,2572.3,2572.1,0.57852291]
[1726950917226,0.81612565,2572.2,2572.1,1.07852291]
[1726950917856,2.03969024,2572.3,2572.1,1.07852291]
[1726950918066,0.81612565,2572.2,2572.1,1.07852291]
[1726950920087,1.03969024,2572.3,2572.1,1.07852291]
[1726950921376,1.03969024,2572.3,2572.1,1.57852291]
[1726950925515,1.03969024,2572.3,2572.1,2.07852291]
[1726950929317,3.47969024,2572.2,2572.1,2.07852291]
[1726950929519,3.47969024,2572.2,2572.1,2.0]
[1726950929816,2.44,2572.2,2572.1,2.57853961]
[1726950930114,4.07021306,2572.2,2572.1,2.57853961]
[1726950930313,2.44,2572.2,2572.1,2.57853961]
[1726950930811,4.07021306,2572.2,2572.1,2.57853961]
[1726950931113,2.44,2572.2,2572.1,2.57853961]
[1726950931978,2.44,2572.2,2572.1,2.65169896]
[1726950932803,3.66335909,2572.2,2572.1,2.65169896]
[1726950933212,2.44,2572.2,2572.1,2.65169896]
[1726950934187,1.22339137,2572.2,2572.1,2.5]
[1726950934588,1.22339137,2572.2,2572.1,2.65173236]
[1726950940619,1.63021306,2572.3,2572.1,2.65173236]
[1726950941123,1.22358262,2572.2,2572.1,2.65173236]
[1726950941287,1.63021306,2572.3,2572.1,2.65173236]
[1726950942158,1.22364023,2572.2,2572.1,2.65173236]
[1726950942620,1.63021306,2572.2,2572.1,2.65173236]
[1726950943325,1.63021306,2572.3,2572.1,2.65173236]
[1726950946590,1.22370539,2572.2,2572.1,2.65173236]
[1726950946889,9.66632118,2572.2,2572.1,2.65173236]
[1726950947091,8.03610812,2572.2,2572.1,2.65173236]
[1726950947397,10.07557085,2572.2,2572.1,2.5]
[1726950949723,8.47695538,2572.1,2572.0,1.1108]
[1726950949895,12.99690617,2572.1,2572.0,1.1108]
[1726950950098,3.0263,2571.3,2570.8,2.3525]
[1726950950290,0.81523421,2571.1,2570.8,2.3525]
[1726950950491,0.81523421,2571.2,2570.9,0.14617623]
[1726950950690,0.81523421,2571.2,2570.8,2.3525]
[1726950951199,1.36523421,2571.3,2570.8,2.7542203]
[1726950951538,0.55,2571.3,2570.9,0.14626533]
[1726950951844,0.55,2571.3,2570.8,2.7542203]
[1726950952001,0.55,2571.3,2571.0,0.14618879]
[1726950952200,0.55,2571.3,2570.8,2.7542203]
[1726950952396,1.36523421,2571.4,2570.8,2.7542203]
[1726950954242,1.36523421,2571.4,2570.8,3.20918505]
[1726950954448,0.55,2571.4,2570.8,2.7542203]
[1726950954767,0.55,2571.4,2570.9,0.14139523]
[1726950962656,0.55,2571.5,2571.0,2.3525]
[1726950962863,1.32979783,2571.5,2571.0,2.3525]
[1726950963032,1.32979783,2571.5,2571.1,0.14124217]
[1726950963756,1.32979783,2571.5,2571.0,2.3525]
[1726950967856,5.21859783,2571.5,2571.0,2.3525]
[1726950968164,1.32979783,2571.5,2571.0,2.3525]
[1726950968924,0.55,2571.6,2571.0,2.3525]
[1726950969125,0.55,2571.6,2571.1,0.141451]
[1726950969825,0.55,2571.6,2571.0,2.3525]
[1726950979040,1.36523421,2571.6,2571.0,2.3525]
[1726950980078,0.55,2571.6,2571.3,0.5]
[1726950980249,1.16185842,2571.5,2571.3,0.5]
[1726950986768,1.97709263,2571.5,2571.3,0.5]
[1726950989364,0.81523421,2571.4,2571.3,0.5]
[1726950989573,1.97709263,2571.5,2571.3,0.5]
[1726950990190,0.81523421,2571.4,2571.3,0.5]
[1726950992465,1.22285132,2571.4,2571.3,0.5]
[1726950994482,1.22308642,2571.4,2571.3,0.5]
[1726950995274,1.63046843,2571.4,2571.3,0.5]
[1726950996488,1.63046843,2571.4,2571.3,1.0]
[1726951005001,2.5643625,2571.4,2571.3,1.0]
[1726951005213,4.9034625,2571.4,2571.3,1.0]
[1726951005359,3.27299407,2571.4,2571.3,1.0]
[1726951005565,7.71192407,2571.4,2571.3,1.0]
[1726951005777,10.16019938,2571.4,2571.3,1.0]
[1726951006099,7.71192407,2571.4,2571.3,1.0]
[1726951007174,10.15783828,2571.4,2571.3,1.0]
[1726951007412,7.71192407,2571.4,2571.3,1.0]
[1726951007616,10.15783278,2571.4,2571.3,1.0]
[1726951009234,7.71192407,2571.4,2571.3,1.0]
[1726951016374,1.62926951,2571.4,2571.3,1.0]
[1726951016523,0.8147559,2571.4,2571.3,1.0]
[1726951016723,0.8147559,2571.6,2571.3,3.4153]